[Event "Portuguese-ch U14-20 2022"]
[Site "Fatima"]
[Date "2022.04.11"]
[Round "3.1"]
[White "Ribeiro, Orlando"]
[Black "Martins, Bruno Andre Leite"]
[Result "0-1"]
[ECO "B33"]
[WhiteElo "1945"]
[BlackElo "2323"]
[Annotator "RC"]
[PlyCount "92"]
[EventDate "2022.04.10"]
[EventType "swiss"]
[EventCountry "POR"]
[SourceTitle "playchess.com"]
[Source "ChessBase"]
[SourceQuality "1"]
[TimeControl "5400+30"]

1. e4 c5 {[%emt 0:02:12]} 2. Nf3 {[%emt 0:00:16]} Nc6 {[%emt 0:01:08]} 3. d4 {[%emt 0:00:15]} cxd4 {[%emt 0:00:08]} 4. Nxd4 {[%emt 0:00:07]} Nf6 {[%emt 0:00:42]} 5. Nc3 {[%emt 0:00:25]} e6 {[%emt 0:00:32]} 6. g3 {[%emt 0:04:16]} a6 {[%emt 0:02:47]} 7. Bg2 {[%emt 0:01:15]} Qc7 {[%emt 0:00:10]} 8. O-O {[%emt 0:01:52]} h5 {[%emt 0:04:33]} 9. h3 {[%emt 0:01:37]} h4 {[%emt 0:05:21]} 10. g4 {[%emt 0:01:36]} Bc5 {[%emt 0:05:55]} 11. Nb3 {[%emt 0:12:02]} Ba7 {[%emt 0:02:38]} 12. Qe2 {[%emt 0:03:32]} Ne5 {[%emt 0:11:45]} 13. Bf4 {[%emt 0:03:38]} Nh7 {[%emt 0:10:51]} 14. Kh1 {[%emt 0:03:46]} g5 {[%emt 0:01:54]} 15. Bh2 {[%emt 0:02:07]} d6 {[%emt 0:08:42]} 16. Rad1 {[%emt 0:01:08]} Qe7 {[%emt 0:03:00]} 17. Qd2 {[%emt 0:03:47]} Bb8 {[%emt 0:02:27]} 18. Na4 {[%emt 0:01:17]} Bc7 {[%emt 0:01:05]} 19. Qb4 {[%emt 0:06:52]} b5 {[%emt 0:02:06]} 20. Bxe5 {[%emt 0:06:19]} dxe5 {[%emt 0:01:12]} 21. Nac5 {[%emt 0:00:36]} Nf8 {[%emt 0:05:38]} 22. c4 {[%emt 0:01:27]} Bd7 {[%emt 0:02:43]} 23. Qc3 {[%emt 0:10:33]} Bc6 {[%emt 0:04:11]} 24. cxb5 {[%emt 0:01:31]} Bxb5 {[%emt 0:00:31]} 25. Rfe1 {[%emt 0:00:46]} Ng6 {[%emt 0:05:18]} 26. Bf1 {[%emt 0:00:21]} Bd6 {[%emt 0:06:15]} 27. Bxb5+ {[%emt 0:08:41]} axb5 {[%emt 0:00:32]} 28. Qd3 {[%emt 0:00:12]} Bxc5 {[%emt 0:00:23]} 29. Qxb5+ {[%emt 0:00:18]} Kf8 {[%emt 0:00:07]} 30. Nxc5 {[%emt 0:00:33]} Kg7 {[%emt 0:01:25]} 31. Rd7 {[%emt 0:08:02]} Qf6 {[%emt 0:00:36]} 32. Qe2 {[%emt 0:01:45]} Rxa2 {[%emt 0:00:58]} 33. Rc1 {[%emt 0:02:52]} Rha8 {[%emt 0:01:57]} 34. Nd3 {[%emt 0:00:30]} Ra1 {[%emt 0:01:08]} 35. Rdc7 {[%emt 0:01:58]} Nf4 {[%emt 0:02:53]} 36. Nxf4 {[%emt 0:00:49]} exf4 {[%emt 0:01:33]} 37. e5 {[%emt 0:03:13]} Qd8 {[%emt 0:01:14]} 38. Kh2 {[%emt 0:05:08]} Qd4 {[%emt 0:01:46]} 39. R7c4 {[%emt 0:00:55]} Qd5 {[%emt 0:00:55]} 40. Rc5 {[%emt 0:00:59]} Qd4 {[%emt 0:00:17]} 41. R5c4 {[%emt 0:00:08]} Qb6 {[%emt 0:00:29]} 42. Rc6 {[%emt 0:00:35]} Qb8 {[%emt 0:00:17]} 43. Rc7 {[%emt 0:01:23]} Rxc1 {[%emt 0:00:11]} 44. Rxc1 {[%emt 0:00:05]} Ra5 {[%emt 0:00:09]} 45. b4 {[%emt 0:01:55]} Qxb4 {[%emt 0:00:41]} 46. Re1 {[%emt 0:00:07]} Ra3 {[%emt 0:00:36]} 0-1

[Event "Portuguese-ch U14-20 2022"]
[Site "Fatima"]
[Date "2022.04.11"]
[Round "3.2"]
[White "Machado, Tomas Dias"]
[Black "Monteiro, Paulo Alexandre G"]
[Result "1/2-1/2"]
[ECO "B70"]
[WhiteElo "2030"]
[BlackElo "2032"]
[Annotator "RC"]
[PlyCount "115"]
[EventDate "2022.04.10"]
[EventType "swiss"]
[EventCountry "POR"]
[SourceTitle "playchess.com"]
[Source "ChessBase"]
[SourceQuality "1"]
[TimeControl "5400+30"]

1. e4 {[%emt 0:00:03]} c5 {[%emt 0:00:08]} 2. Nf3 {[%emt 0:00:05]} d6 {[%emt 0:00:07]} 3. d4 {[%emt 0:00:09]} cxd4 {[%emt 0:00:08]} 4. Nxd4 {[%emt 0:00:05]} Nf6 {[%emt 0:00:08]} 5. Nc3 {[%emt 0:00:08]} g6 {[%emt 0:00:13]} 6. Bc4 {[%emt 0:01:45]} Bg7 {[%emt 0:01:00]} 7. Bb3 {[%emt 0:12:41]} O-O {[%emt 0:01:27]} 8. h3 {[%emt 0:00:44]} Nc6 {[%emt 0:01:22]} 9. Be3 {[%emt 0:00:16]} Na5 {[%emt 0:03:56]} 10. O-O {[%emt 0:01:22]} b6 {[%emt 0:01:18]} 11. f4 {[%emt 0:06:31]} Bb7 {[%emt 0:02:10]} 12. Qd3 {[%emt 0:03:36]} Nxb3 {[%emt 0:02:58]} 13. axb3 {[%emt 0:02:41]} a6 {[%emt 0:03:02]} 14. b4 {[%emt 0:14:19]} b5 {[%emt 0:22:56]} 15. Nb3 {[%emt 0:05:57]} Rc8 {[%emt 0:02:53]} 16. Na5 {[%emt 0:01:46]} Ba8 {[%emt 0:01:13]} 17. Bd4 {[%emt 0:10:47]} Nd7 {[%emt 0:14:07]} 18. Bxg7 {[%emt 0:04:13]} Kxg7 {[%emt 0:00:07]} 19. Qd4+ {[%emt 0:00:26]} Kg8 {[%emt 0:01:16]} 20. Rad1 {[%emt 0:01:20]} Qb6 {[%emt 0:05:08]} 21. Kh2 {[%emt 0:01:59]} Rfd8 {[%emt 0:02:41]} 22. Qxb6 {[%emt 0:04:55]} Nxb6 {[%emt 0:00:07]} 23. Rd4 {[%emt 0:00:10]} Na4 {[%emt 0:08:20]} 24. Nxa4 {[%emt 0:01:08]} bxa4 {[%emt 0:00:22]} 25. Nc4 {[%emt 0:11:28]} e5 {[%emt 0:16:46]} 26. fxe5 {[%emt 0:05:47]} dxe5 {[%emt 0:00:18]} 27. Rxd8+ {[%emt 0:00:38]} Rxd8 {[%emt 0:00:06]} 28. c3 {[%emt 0:02:06]} Bxe4 {[%emt 0:02:28]} 29. Ra1 {[%emt 0:01:25]} Bc2 {[%emt 0:02:48]} 30. Nb6 {[%emt 0:03:57]} Rd2 {[%emt 0:01:55]} 31. Nxa4 {[%emt 0:00:39]} Be4 {[%emt 0:00:44]} 32. Rg1 {[%emt 0:00:02]} Bc6 {[%emt 0:00:51]} 33. b3 {[%emt 0:01:39]} Rc2 {[%emt 0:01:06]} 34. c4 {[%emt 0:01:59]} Bxa4 {[%emt 0:00:56]} 35. bxa4 {[%emt 0:00:04]} Rxc4 {[%emt 0:00:10]} 36. Rb1 {[%emt 0:00:04]} Kf8 {[%emt 0:01:17]} 37. b5 {[%emt 0:01:14]} axb5 {[%emt 0:00:15]} 38. axb5 {[%emt 0:00:01]} Rc7 {[%emt 0:00:24]} 39. Kg3 {[%emt 0:00:32]} Rb7 {[%emt 0:01:23]} 40. b6 {[%emt 0:00:17]} Ke7 {[%emt 0:00:31]} 41. Kf3 {[%emt 0:01:02]} Kd6 {[%emt 0:00:43]} 42. g4 {[%emt 0:00:58]} f5 {[%emt 0:00:37]} 43. gxf5 {[%emt 0:00:15]} gxf5 {[%emt 0:00:07]} 44. h4 {[%emt 0:00:27]} Kc5 {[%emt 0:00:36]} 45. Re1 {[%emt 0:00:23]} Re7 {[%emt 0:01:03]} 46. b7 {[%emt 0:00:04]} e4+ {[%emt 0:00:28]} 47. Kf4 {[%emt 0:00:10]} Rxb7 {[%emt 0:00:12]} 48. Kxf5 {[%emt 0:00:16]} Rf7+ {[%emt 0:00:16]} 49. Ke5 {[%emt 0:00:22]} Re7+ {[%emt 0:00:43]} 50. Kf6 {[%emt 0:01:12]} Re8 {[%emt 0:00:18]} 51. Kf7 {[%emt 0:00:03]} Re5 {[%emt 0:00:35]} 52. Kf6 {[%emt 0:00:08]} Re8 {[%emt 0:01:00]} 53. Kf7 {[%emt 0:00:05]} Re5 {[%emt 0:00:04]} 54. Kf6 {[%emt 0:00:02]} Kd6 {[%emt 0:01:02]} 55. Rd1+ {[%emt 0:00:07]} Rd5 {[%emt 0:00:06]} 56. Re1 {[%emt 0:00:04]} Rd4 {[%emt 0:00:19]} 57. Kf5 {[%emt 0:00:11]} Kd5 {[%emt 0:00:33]} 58. h5 {[%emt 0:00:22]} 1/2-1/2

[Event "Portuguese-ch U14-20 2022"]
[Site "Fatima"]
[Date "2022.04.11"]
[Round "3.3"]
[White "Leao, Tiago Miguel Da Silv"]
[Black "Santos, Jose Miguel Sereno"]
[Result "1/2-1/2"]
[ECO "A06"]
[WhiteElo "2131"]
[BlackElo "1843"]
[Annotator "RC"]
[PlyCount "36"]
[EventDate "2022.04.10"]
[EventType "swiss"]
[EventCountry "POR"]
[SourceTitle "playchess.com"]
[Source "ChessBase"]
[SourceQuality "1"]
[TimeControl "5400+30"]

1. Nf3 {[%emt 0:00:03]} d5 {[%emt 0:01:51]} 2. b3 {[%emt 0:00:22]} Bf5 {[%emt 0:01:55]} 3. Bb2 {[%emt 0:00:35]} Nf6 {[%emt 0:00:19]} 4. e3 {[%emt 0:00:32]} Nbd7 {[%emt 0:01:00]} 5. c4 e6 6. Nc3 {[%emt 0:01:48]} c6 {[%emt 0:02:56]} 7. Be2 {[%emt 0:00:52]} Nc5 {[%emt 0:04:35]} 8. d4 {[%emt 0:00:28]} Nce4 {[%emt 0:00:08]} 9. Nxe4 {[%emt 0:00:27]} Nxe4 {[%emt 0:00:28]} 10. a3 {[%emt 0:04:52]} Bd6 {[%emt 0:11:12]} 11. O-O {[%emt 0:02:30]} O-O {[%emt 0:06:31]} 12. Nd2 {[%emt 0:05:12]} f6 {[%emt 0:14:12]} 13. Nxe4 {[%emt 0:00:57]} Bxe4 {[%emt 0:01:58]} 14. Bd3 {[%emt 0:02:23]} Bg6 {[%emt 0:02:31]} 15. Bxg6 {[%emt 0:03:57]} hxg6 {[%emt 0:01:56]} 16. f4 {[%emt 0:03:10]} f5 {[%emt 0:07:42]} 17. Qe2 {[%emt 0:05:37]} Kf7 {[%emt 0:01:45]} 18. g3 {[%emt 0:05:28]} Rh8 {[%emt 0:05:06]} 1/2-1/2

[Event "Portuguese-ch U14-20 2022"]
[Site "Fatima"]
[Date "2022.04.11"]
[Round "3.4"]
[White "Maciel, Rafael"]
[Black "Voges, Guilherme"]
[Result "1/2-1/2"]
[ECO "B08"]
[WhiteElo "1665"]
[BlackElo "1657"]
[Annotator "NA RC"]
[PlyCount "101"]
[EventDate "2022.04.10"]
[EventType "swiss"]
[EventCountry "POR"]
[SourceTitle "playchess.com"]
[Source "ChessBase"]
[SourceQuality "1"]
[TimeControl "5400+30"]

1. e4 {[%emt 0:00:03]} g6 {[%emt 0:00:05]} 2. d4 {[%emt 0:00:18]} Bg7 {[%emt 0:00:05]} 3. Nf3 {[%emt 0:00:52]} d6 {[%emt 0:00:05]} 4. h3 {[%emt 0:02:11]} Nf6 {[%emt 0:00:48]} 5. Nc3 {[%emt 0:00:18]} O-O {[%emt 0:00:08]} 6. Bc4 {[%emt 0:01:33]} Nxe4 {[%emt 0:02:09]} 7. Nxe4 {[%emt 0:02:59]} d5 {[%emt 0:00:08]} 8. Bxd5 {[%emt 0:00:08]} Qxd5 {[%emt 0:00:06]} 9. Nc3 {[%emt 0:00:11]} Qd8 {[%emt 0:01:22]} 10. Be3 {[%emt 0:01:15]} Nc6 {[%emt 0:02:14]} 11. O-O {[%emt 0:01:37]} Bf5 {[%emt 0:03:52]} 12. Qd2 {[%emt 0:06:19]} e5 {[%emt 0:06:04]} 13. Nxe5 {[%emt 0:05:47]} Nxe5 {[%emt 0:02:12]} 14. dxe5 {[%emt 0:00:17]} Qxd2 {[%emt 0:00:26]} 15. Bxd2 {[%emt 0:00:07]} Bxe5 {[%emt 0:02:04]} 16. Rfe1 {[%emt 0:02:45]} Rad8 {[%emt 0:00:52]} 17. Bg5 {[%emt 0:01:54]} f6 {[%emt 0:00:19]} 18. Rxe5 {[%emt 0:00:40]} fxe5 {[%emt 0:00:24]} 19. Bxd8 {[%emt 0:00:14]} Rxd8 {[%emt 0:00:06]} 20. Re1 {[%emt 0:01:46]} Rd2 {[%emt 0:01:57]} 21. Rxe5 {[%emt 0:01:08]} Rxc2 {[%emt 0:02:45]} 22. Re2 {[%emt 0:00:46]} Rc1+ {[%emt 0:01:56]} 23. Kh2 {[%emt 0:00:10]} Kf7 {[%emt 0:00:41]} 24. Kg3 {[%emt 0:14:09]} a6 {[%emt 0:01:52]} 25. Nd5 {[%emt 0:04:21]} Be6 {[%emt 0:01:29]} 26. Nb4 {[%emt 0:02:13]} Rd1 {[%emt 0:09:35]} 27. a3 {[%emt 0:01:41]} Bf5 {[%emt 0:01:45]} 28. Na2 {[%emt 0:01:37]} Bd3 {[%emt 0:06:43]} 29. Re3 {[%emt 0:01:17]} Rd2 {[%emt 0:03:54]} 30. Nc3 {[%emt 0:00:57]} Bf5 {[%emt 0:03:09]} 31. Re2 {[%emt 0:00:44]} Rd6 {[%emt 0:00:53]} 32. Na4 {[%emt 0:00:54]} b6 {[%emt 0:04:45]} 33. Nc3 {[%emt 0:01:00]} c5 {[%emt 0:00:54]} 34. Kf3 {[%emt 0:03:21]} Kf6 {[%emt 0:04:18]} 35. Ne4+ {[%emt 0:01:40]} Bxe4+ {[%emt 0:00:11]} 36. Kxe4 {[%emt 0:00:38]} Re6+ {[%emt 0:02:55]} 37. Kf3 {[%emt 0:00:33]} Rxe2 {[%emt 0:00:52]} 38. Kxe2 {[%emt 0:00:05]} Ke5 {[%emt 0:00:24]} 39. Ke3 {[%emt 0:01:29]} g5 {[%emt 0:01:07]} 40. g3 {[%emt 0:01:03]} b5 {[%emt 0:01:04]} 41. f4+ {[%emt 0:01:32]} gxf4+ {[%emt 0:00:08]} 42. gxf4+ {[%emt 0:00:04]} Kf5 {[%emt 0:00:15]} 43. Kf3 {[%emt 0:02:23]} h5 {[%emt 0:01:25]} 44. h4 {[%emt 0:01:46]} b4 {[%emt 0:00:19]} 45. axb4 {[%emt 0:02:18]} cxb4 {[%emt 0:05:29]} 46. b3 {[%emt 0:00:07]} a5 {[%emt 0:01:29]} 47. Ke3 {[%emt 0:00:41]} Kf6 {[%emt 0:01:08]} 48. Ke4 {[%emt 0:04:12]} Ke6 {[%emt 0:00:40]} 49. Kd4 {[%emt 0:01:13]} Kf5 {[%emt 0:00:32]} 50. Ke3 {[%emt 0:00:26]} Kf6 {[%emt 0:02:01]} 51. Ke4 {[%emt 0:00:13]} 1/2-1/2

[Event "Portuguese-ch U14-20 2022"]
[Site "Fatima"]
[Date "2022.04.11"]
[Round "3.5"]
[White "Oliveira, Beatriz Correia"]
[Black "Cunha, Alexandre Rodrigo Vi"]
[Result "1/2-1/2"]
[ECO "D43"]
[WhiteElo "1558"]
[BlackElo "1603"]
[Annotator "NA RC"]
[PlyCount "112"]
[EventDate "2022.04.10"]
[EventType "swiss"]
[EventCountry "POR"]
[SourceTitle "playchess.com"]
[Source "ChessBase"]
[SourceQuality "1"]
[TimeControl "5400+30"]

1. d4 {[%emt 0:00:02]} d5 {[%emt 0:00:10]} 2. c4 {[%emt 0:00:06]} c6 {[%emt 0:00:05]} 3. Nc3 {[%emt 0:00:23]} e6 {[%emt 0:00:15]} 4. Nf3 {[%emt 0:00:18]} Nf6 {[%emt 0:00:14]} 5. Bg5 {[%emt 0:00:25]} h6 {[%emt 0:00:54]} 6. Bh4 {[%emt 0:00:12]} Be7 {[%emt 0:00:15]} 7. e3 {[%emt 0:00:37]} Nbd7 {[%emt 0:00:07]} 8. Bd3 {[%emt 0:01:05]} O-O {[%emt 0:00:59]} 9. O-O {[%emt 0:00:56]} Qc7 {[%emt 0:04:37]} 10. Rc1 {[%emt 0:01:45]} Re8 {[%emt 0:12:21]} 11. cxd5 {[%emt 0:01:59]} Nxd5 12. Bg3 {[%emt 0:01:15]} Nxc3 {[%emt 0:10:56]} 13. Rxc3 {[%emt 0:03:19]} Bd6 {[%emt 0:01:07]} 14. Bxd6 {[%emt 0:03:03]} Qxd6 {[%emt 0:00:07]} 15. a3 {[%emt 0:02:49]} Kh8 {[%emt 0:01:26]} 16. Bb1 {[%emt 0:03:08]} Qe7 {[%emt 0:06:52]} 17. Qc2 {[%emt 0:06:08]} g6 {[%emt 0:01:41]} 18. Rc1 {[%emt 0:04:56]} e5 {[%emt 0:04:45]} 19. dxe5 {[%emt 0:03:28]} Nxe5 {[%emt 0:00:48]} 20. Nxe5 {[%emt 0:04:50]} Qxe5 {[%emt 0:00:10]} 21. Qb3 {[%emt 0:07:59]} Qe7 {[%emt 0:05:22]} 22. Rd1 {[%emt 0:03:51]} Be6 {[%emt 0:01:02]} 23. Qa4 {[%emt 0:04:13]} Red8 {[%emt 0:03:14]} 24. Rcd3 {[%emt 0:02:44]} a6 {[%emt 0:01:26]} 25. Qa5 {[%emt 0:03:14]} Rxd3 {[%emt 0:01:31]} 26. Bxd3 {[%emt 0:01:54]} Rd8 {[%emt 0:01:39]} 27. Qc3+ {[%emt 0:00:23]} Kg8 {[%emt 0:02:31]} 28. Bc2 {[%emt 0:04:03]} Rxd1+ {[%emt 0:01:50]} 29. Bxd1 {[%emt 0:00:20]} Bd5 {[%emt 0:03:33]} 30. Qd4 {[%emt 0:03:41]} Qe4 {[%emt 0:04:25]} 31. Qxe4 {[%emt 0:03:05]} Bxe4 {[%emt 0:00:06]} 32. f3 {[%emt 0:00:47]} Bd5 {[%emt 0:00:44]} 33. Kf2 {[%emt 0:00:56]} h5 {[%emt 0:02:27]} 34. e4 {[%emt 0:00:26]} Be6 {[%emt 0:00:30]} 35. Ke3 {[%emt 0:00:30]} c5 {[%emt 0:02:33]} 36. e5 {[%emt 0:01:30]} b5 {[%emt 0:02:41]} 37. Kd3 {[%emt 0:03:16]} Kf8 {[%emt 0:04:23]} 38. h3 {[%emt 0:01:38]} Ke7 39. f4 {[%emt 0:01:10]} a5 {[%emt 0:12:16]} 40. Ke4 {[%emt 0:01:43]} Kd7 {[%emt 0:01:06]} 41. g4 {[%emt 0:00:35]} hxg4 {[%emt 0:00:10]} 42. hxg4 {[%emt 0:00:05]} Kc6 {[%emt 0:00:11]} 43. f5 {[%emt 0:01:34]} gxf5+ 44. gxf5 {[%emt 0:00:31]} Bd5+ {[%emt 0:00:44]} 45. Kf4 {[%emt 0:03:26]} b4 {[%emt 0:00:13]} 46. Ba4+ {[%emt 0:01:23]} Kc7 {[%emt 0:00:14]} 47. axb4 {[%emt 0:01:04]} axb4 {[%emt 0:00:34]} 48. Bc2 {[%emt 0:02:08]} b3 {[%emt 0:03:39]} 49. Bb1 {[%emt 0:01:40]} Kc6 {[%emt 0:00:59]} 50. Kg5 {[%emt 0:03:40]} c4 {[%emt 0:00:54]} 51. Kf6 {[%emt 0:00:24]} c3 {[%emt 0:01:36]} 52. bxc3 {[%emt 0:00:20]} Kc5 {[%emt 0:01:51]} 53. Bd3 b2 {[%emt 0:00:23]} 54. e6 {[%emt 0:02:02]} fxe6 {[%emt 0:00:30]} 55. fxe6 {[%emt 0:00:07]} Bxe6 {[%emt 0:00:14]} 56. Kxe6 {[%emt 0:00:10]} b1=Q {[%emt 0:00:05]} 1/2-1/2

[Event "Portuguese-ch U14-20 2022"]
[Site "Fatima"]
[Date "2022.04.11"]
[Round "3.7"]
[White "Marques, Joao Goncalo B A"]
[Black "Gage, Daniel"]
[Result "0-1"]
[ECO "B48"]
[WhiteElo "1418"]
[BlackElo "1752"]
[Annotator "NA RC"]
[PlyCount "64"]
[EventDate "2022.04.10"]
[EventType "swiss"]
[EventCountry "POR"]
[SourceTitle "playchess.com"]
[Source "ChessBase"]
[SourceQuality "1"]
[TimeControl "5400+30"]

1. e4 {[%emt 0:01:56]} c5 {[%emt 0:00:03]} 2. Nf3 {[%emt 0:00:18]} e6 {[%emt 0:00:01]} 3. d4 {[%emt 0:00:28]} cxd4 {[%emt 0:00:05]} 4. Nxd4 {[%emt 0:00:05]} Nc6 {[%emt 0:00:06]} 5. Nc3 {[%emt 0:00:05]} Qc7 {[%emt 0:00:04]} 6. Be3 {[%emt 0:00:06]} a6 {[%emt 0:00:05]} 7. Qf3 {[%emt 0:00:25]} Ne5 {[%emt 0:00:19]} 8. Qg3 {[%emt 0:02:08]} h5 {[%emt 0:00:03]} 9. Bf4 {[%emt 0:17:02]} d6 {[%emt 0:00:02]} 10. Bxe5 {[%emt 0:01:29]} dxe5 {[%emt 0:00:04]} 11. h4 {[%emt 0:05:10]} b5 {[%emt 0:34:14]} 12. Bd3 {[%emt 0:11:02]} Bb7 {[%emt 0:05:20]} 13. O-O {[%emt 0:07:32]} Nf6 {[%emt 0:04:38]} 14. a3 {[%emt 0:03:39]} Rh6 {[%emt 0:05:06]} 15. Nde2 {[%emt 0:00:07]} Rg6 {[%emt 0:01:21]} 16. Qh3 {[%emt 0:00:59]} Ng4 {[%emt 0:05:03]} 17. Nd1 {[%emt 0:06:54]} Bc5 {[%emt 0:01:20]} 18. Kh1 Qe7 {[%emt 0:05:18]} 19. f4 {[%emt 0:10:14]} Nh6 {[%emt 0:10:07]} 20. c4 {[%emt 0:10:13]} bxc4 {[%emt 0:04:32]} 21. Bc2 {[%emt 0:00:26]} Rg4 {[%emt 0:00:57]} 22. g3 {[%emt 0:00:06]} Nf5 {[%emt 0:01:03]} 23. Qg2 {[%emt 0:02:18]} Nxh4 {[%emt 0:01:03]} 24. Qh3 {[%emt 0:00:44]} Rd8 {[%emt 0:02:36]} 25. Nf2 {[%emt 0:05:27]} Bxf2 {[%emt 0:02:23]} 26. Rxf2 {[%emt 0:00:04]} Rd2 {[%emt 0:00:07]} 27. Ba4+ {[%emt 0:02:27]} Kf8 {[%emt 0:00:27]} 28. Qf1 {[%emt 0:01:41]} Bxe4+ {[%emt 0:02:19]} 29. Kh2 {[%emt 0:00:18]} Nf5 {[%emt 0:03:19]} 30. Rd1 {[%emt 0:05:13]} Rh4+ {[%emt 0:00:39]} 31. gxh4 {[%emt 0:00:13]} Qxh4+ {[%emt 0:00:03]} 32. Qh3 {[%emt 0:01:27]} Qxf2+ {[%emt 0:00:03]} 0-1

[Event "Portuguese-ch U14-20 2022"]
[Site "Fatima"]
[Date "2022.04.11"]
[Round "3.8"]
[White "Rodrigues, Guilherme Eufrasio"]
[Black "Teves, Pedro"]
[Result "1-0"]
[ECO "A38"]
[WhiteElo "1171"]
[BlackElo "1390"]
[Annotator "NA RC"]
[PlyCount "69"]
[EventDate "2022.04.10"]
[EventType "swiss"]
[EventCountry "POR"]
[SourceTitle "playchess.com"]
[Source "ChessBase"]
[SourceQuality "1"]
[TimeControl "5400+30"]

1. c4 {[%emt 0:00:37]} c5 {[%emt 0:00:11]} 2. g3 {[%emt 0:00:43]} Nc6 {[%emt 0:00:10]} 3. Bg2 {[%emt 0:00:07]} g6 {[%emt 0:00:09]} 4. Nc3 {[%emt 0:00:06]} Bg7 {[%emt 0:00:13]} 5. Nf3 {[%emt 0:00:05]} Nf6 {[%emt 0:00:10]} 6. d4 {[%emt 0:00:05]} cxd4 {[%emt 0:00:05]} 7. Nxd4 {[%emt 0:00:05]} Nxd4 {[%emt 0:00:26]} 8. Qxd4 {[%emt 0:00:03]} O-O {[%emt 0:00:29]} 9. Qd1 {[%emt 0:01:09]} d6 {[%emt 0:00:13]} 10. O-O {[%emt 0:00:41]} Rb8 {[%emt 0:00:51]} 11. Qc2 {[%emt 0:02:40]} a6 {[%emt 0:01:12]} 12. b3 {[%emt 0:00:36]} Be6 {[%emt 0:04:11]} 13. Bf4 {[%emt 0:00:37]} Qd7 {[%emt 0:01:45]} 14. Rfd1 Rfc8 {[%emt 0:00:35]} 15. Rac1 {[%emt 0:03:31]} b5 {[%emt 0:00:54]} 16. cxb5 {[%emt 0:05:20]} axb5 {[%emt 0:06:44]} 17. Qd3 {[%emt 0:00:39]} b4 {[%emt 0:12:52]} 18. Na4 {[%emt 0:02:48]} Ne8 {[%emt 0:07:41]} 19. Rxc8 {[%emt 0:00:23]} Qxc8 {[%emt 0:01:52]} 20. Rc1 {[%emt 0:00:04]} Qd8 {[%emt 0:02:47]} 21. Be3 {[%emt 0:10:16]} Bf5 {[%emt 0:02:14]} 22. Be4 {[%emt 0:00:12]} Bxe4 {[%emt 0:02:22]} 23. Qxe4 {[%emt 0:00:04]} d5 {[%emt 0:01:50]} 24. Qd3 {[%emt 0:07:18]} d4 {[%emt 0:06:15]} 25. Bd2 {[%emt 0:00:45]} Nc7 {[%emt 0:04:56]} 26. e4 {[%emt 0:16:10]} Qd6 {[%emt 0:04:39]} 27. Qc4 {[%emt 0:04:20]} Rb7 {[%emt 0:07:25]} 28. Nc5 {[%emt 0:00:26]} Ra7 {[%emt 0:00:18]} 29. Bxb4 {[%emt 0:00:37]} Rxa2 {[%emt 0:03:04]} 30. Nd3 {[%emt 0:00:57]} Qa6 {[%emt 0:03:08]} 31. Qxc7 {[%emt 0:00:39]} Qxd3 {[%emt 0:00:23]} 32. Qc8+ {[%emt 0:00:05]} Bf8 {[%emt 0:00:10]} 33. Bxe7 {[%emt 0:00:05]} h5 {[%emt 0:02:26]} 34. Qxf8+ {[%emt 0:00:05]} Kh7 {[%emt 0:00:34]} 35. Bf6 {[%emt 0:00:11]} 1-0

[Event "Portuguese-ch U14-20 2022"]
[Site "Fatima"]
[Date "2022.04.11"]
[Round "3.9"]
[White "Lanca, Luis"]
[Black "Oliveira, Daniela Sousa"]
[Result "1-0"]
[ECO "B41"]
[WhiteElo "1316"]
[BlackElo "1272"]
[Annotator "NA RC"]
[PlyCount "68"]
[EventDate "2022.04.10"]
[EventType "swiss"]
[EventCountry "POR"]
[SourceTitle "playchess.com"]
[Source "ChessBase"]
[SourceQuality "1"]
[TimeControl "5400+30"]

1. e4 {[%emt 0:00:04]} c5 {[%emt 0:00:10]} 2. Nf3 {[%emt 0:00:07]} a6 {[%emt 0:00:06]} 3. d4 {[%emt 0:00:05]} cxd4 {[%emt 0:00:27]} 4. Nxd4 {[%emt 0:00:03]} e6 {[%emt 0:00:08]} 5. a3 {[%emt 0:03:00]} b5 {[%emt 0:03:13]} 6. Be3 {[%emt 0:02:21]} Bb7 {[%emt 0:01:08]} 7. f3 {[%emt 0:02:21]} d6 {[%emt 0:02:20]} 8. Nc3 {[%emt 0:01:34]} Nf6 {[%emt 0:01:10]} 9. Qd2 {[%emt 0:00:12]} Be7 {[%emt 0:04:19]} 10. Be2 {[%emt 0:00:59]} Nbd7 {[%emt 0:00:51]} 11. g4 {[%emt 0:00:11]} Ne5 {[%emt 0:09:39]} 12. g5 {[%emt 0:00:21]} Nfd7 {[%emt 0:00:14]} 13. h4 {[%emt 0:00:52]} Nc4 {[%emt 0:02:24]} 14. Bxc4 {[%emt 0:00:09]} bxc4 {[%emt 0:00:04]} 15. h5 {[%emt 0:05:36]} d5 {[%emt 0:16:00]} 16. Ke2 {[%emt 0:02:58]} Nc5 {[%emt 0:04:50]} 17. e5 {[%emt 0:00:06]} Rb8 {[%emt 0:05:23]} 18. Rag1 Qb6 {[%emt 0:05:52]} 19. Nd1 {[%emt 0:04:12]} a5 {[%emt 0:05:24]} 20. g6 {[%emt 0:01:23]} fxg6 {[%emt 0:02:15]} 21. hxg6 {[%emt 0:00:51]} Ba6 {[%emt 0:01:46]} 22. c3 {[%emt 0:00:49]} h6 {[%emt 0:05:01]} 23. Bxh6 {[%emt 0:01:51]} gxh6 {[%emt 0:03:45]} 24. Rxh6 {[%emt 0:00:04]} Kd7 {[%emt 0:01:50]} 25. Rh7 {[%emt 0:02:28]} Nb3 {[%emt 0:02:48]} 26. Qe3 {[%emt 0:02:04]} Nxd4+ {[%emt 0:00:43]} 27. cxd4 {[%emt 0:00:05]} c3+ {[%emt 0:00:33]} 28. Ke1 {[%emt 0:00:45]} Rxh7 {[%emt 0:01:58]} 29. gxh7 {[%emt 0:00:00]} cxb2 {[%emt 0:00:58]} 30. Rg8 {[%emt 0:00:07]} Bh4+ {[%emt 0:02:01]} 31. Kd2 {[%emt 0:00:12]} b1=Q {[%emt 0:02:47]} 32. Rg7+ {[%emt 0:00:12]} Kc6 {[%emt 0:03:46]} 33. Qc3+ {[%emt 0:00:06]} Bc4 {[%emt 0:00:29]} 34. Rg8 {[%emt 0:00:02]} Qa2+ {[%emt 0:01:34]} 1-0